fUST/lending_fUST_20240706
["ID","MTS","AMOUNT","RATE_DAILY","PERIOD"]
[331298749,1720197061025,-248.834709,0.000479,14]
[331298750,1720197061035,-248.834703,0.000479,14]
[331298751,1720197061046,-439.124018,0.000479,14]
[331298752,1720197061056,-439.124013,0.000479,14]
[331298753,1720197061065,-1769.437153,0.000479,14]
[331298754,1720197061074,-151.0,0.000479,14]
[331298755,1720197061083,-1769.437153,0.000479,14]
[331298756,1720197061093,-368.906147,0.000479,14]
[331298757,1720197061103,-151.0,0.000479,14]
[331298758,1720197061112,-368.906147,0.000479,14]
[331298759,1720197061123,-276.225502,0.000479,14]
[331298760,1720197061132,-276.225502,0.000479,14]
[331298761,1720197061142,-192.97881,0.000479,14]
[331298762,1720197061152,-192.97881,0.000479,14]
[331298763,1720197061162,-425.368584,0.000479,14]
[331298764,1720197061172,-195.602378,0.000479,14]
[331298765,1720197061181,-425.368584,0.000479,14]
[331298766,1720197061191,-151.0,0.000479,14]
[331298767,1720197061200,-195.602378,0.000479,14]
[331298768,1720197061210,-467.029847,0.000479,14]
[331298769,1720197061306,-500.0,0.00047945,60]
[331298770,1720197061316,-293.3096853,0.00047945,2]
[331298771,1720197061325,-293.3096853,0.00047945,2]
[331298772,1720197061335,-293.3096853,0.00047945,2]
[331298773,1720197061344,-293.3096853,0.00047945,2]
[331298774,1720197061354,-598.7610271,0.00047945,2]
[331298775,1720197061363,-293.3096853,0.00047945,2]
[331298776,1720197061373,-500.0,0.00047997,14]
[331298777,1720197061382,-10000.0,0.00048,48]
[331298778,1720197061392,-283428.41936356,0.00048,120]
[331298779,1720197061401,-5000.0,0.00048,14]
[331298780,1720197061410,-254679.0,0.00048,120]
[331298781,1720197061419,-151.0,0.00048,14]
[331298782,1720197061428,-151.0,0.00048,14]
[331298783,1720197061438,-950.007447,0.00048,14]
[331298784,1720197061448,-950.007446,0.00048,14]
[331298785,1720197061460,-570.358131,0.00048,14]
[331298786,1720197061476,-570.358127,0.00048,14]
[331298787,1720197061485,-181.702156,0.00048,14]
[331298788,1720197061495,-181.70216,0.00048,14]
[331298789,1720197061504,-209.958757,0.00048,14]
[331298790,1720197061514,-209.958754,0.00048,14]
[331298791,1720197061525,-151.0,0.00048,14]
[331298792,1720197061537,-186.349884,0.00048,14]
[331298793,1720197061549,-162.710071,0.00048,14]
[331298794,1720197061558,-275.876128,0.00048,14]
[331298795,1720197061568,-298.006909,0.00048,14]
[331298796,1720197061578,-298.006909,0.00048,14]
[331298797,1720197061587,-298.006909,0.00048,14]
[331298798,1720197061596,-298.006909,0.00048,14]
[331298799,1720197061606,-911.0124,0.00048,30]
[331298800,1720197061615,-911.377261,0.00048,14]
[331298801,1720197061625,-911.377256,0.00048,14]
[331298802,1720197061634,-1769.437153,0.00048,14]
[331298803,1720197061643,-151.0,0.00048,14]
[331298804,1720197061655,-1769.43716129,0.00048,14]
[331298805,1720197061664,-368.906147,0.00048,14]
[331298806,1720197061673,-151.0,0.00048,14]
[331298807,1720197061682,-368.906143,0.00048,14]
[331298808,1720197061691,-276.225502,0.00048,14]
[331298809,1720197061700,-276.225492,0.00048,14]
[331298810,1720197061709,-192.97881,0.00048,14]
[331298811,1720197061719,-192.978804,0.00048,14]
[331298812,1720197061728,-425.368584,0.00048,14]
[331298813,1720197061738,-195.602378,0.00048,14]
[331298814,1720197061747,-425.368576,0.00048,14]
[331298815,1720197061756,-151.0,0.00048,14]
[331298816,1720197061766,-195.602371,0.00048,14]
[331298817,1720197061775,-158.66408626,0.00048001,30]
[331298818,1720197061784,-1000.0,0.00048219,120]
[331298819,1720197061793,-14750.92089144,0.00048398,8]
[331298820,1720197061803,-151.57276841,0.00048416,30]
[331298821,1720197061817,-306.0,0.00048493,2]
[331298822,1720197061831,-412.22956,0.00048493,2]
[331298823,1720197061841,-229111.39538236,0.000485,120]
[331298824,1720197062566,273.37336231,9.9e-05,2]
[331298825,1720197066906,273.37336231,9.9e-05,2]
[331298826,1720197074595,273.37336231,9.9e-05,2]
[331298827,1720197081270,9615.23092531,0.00012,2]
[331298828,1720197083984,273.37336231,9.9e-05,2]
[331298829,1720197086780,42226.30858632,0.00012,2]
[331298830,1720197088512,3078.85157566,0.00012,2]
[331298831,1720197089051,1597.44376902,0.00012,2]
[331298832,1720197089411,34932.27430829,0.00012,2]
[331298833,1720197093325,492.41385168,0.00012,2]
[331298834,1720197094041,273.37336231,9.9e-05,2]
[331298835,1720197095164,1434.5963251,0.00012,2]
[331298836,1720197095715,576.35561417,0.00012,2]
[331298837,1720197096768,1500.0,0.00012,2]
[331298838,1720197097060,3138.06906429,0.00012,2]
[331298839,1720197097331,6981.98564229,0.00012,2]
[331298840,1720197098541,1916.49944035,0.00012,2]
[331298841,1720197100133,1489.24109091,0.00012,2]
[331298842,1720197100650,17247.80566422,0.00012,2]
[331298843,1720197100718,273.37336231,9.9e-05,2]
[331298844,1720197101530,510.09603467,0.00012,2]
[331298845,1720197102623,1916.49944035,0.00012,2]
[331298846,1720197104724,2132.69930736,0.00012,2]
[331298847,1720197105961,274.03030541,0.00012,2]
[331298848,1720197108827,273.37336231,9.9e-05,2]
[331298849,1720197112833,1158.30679459,0.00012,2]
[331298850,1720197112875,17247.80566422,0.00012,2]
[331298851,1720197114942,3130.40828598,0.00012,4]
[331298852,1720197116936,273.37336231,9.9e-05,2]
[331298853,1720197126744,273.37336231,9.9e-05,2]
[331298854,1720197130720,334.11919205,0.00012,2]
[331298855,1720197131530,901.43078556,0.00012,2]
[331298856,1720197131969,737.48726151,0.00012,2]
[331298857,1720197132747,40253.2713472,0.00012,2]
[331298858,1720197133565,3078.85157566,0.00012,2]
[331298859,1720197134912,273.37336231,9.9e-05,2]
[331298860,1720197139362,1597.44376902,0.00012,2]
[331298861,1720197140146,358.84068724,0.00012,2]
[331298862,1720197140496,34932.27430829,0.00012,2]
[331298863,1720197140631,9615.23092531,0.00012,2]
[331298864,1720197143254,273.37336231,9.9e-05,2]
[331298865,1720197143879,1931.30439202,0.00012,2]
[331298866,1720197144157,421.5153563,0.00012,2]
[331298867,1720197146376,452.37491002,0.00012,2]
[331298868,1720197147446,1500.0,0.00012,2]
[331298869,1720197149138,17247.80566422,0.00012,2]
[331298870,1720197149490,256.0036371,0.00012,2]
[331298871,1720197149527,3092.52699191,0.00012,2]
[331298872,1720197151733,273.37336231,9.9e-05,2]
[331298873,1720197160348,1158.30679459,0.00012,2]
[331298874,1720197161163,273.37336231,9.9e-05,2]
[331298875,1720197161448,3130.40828598,0.00012,4]
[331298876,1720197169359,273.37336231,9.9e-05,2]
[331298877,1720197173162,210.81465367,0.00012,2]
[331298878,1720197175071,34932.27430829,0.00012,2]
[331298879,1720197176312,1597.44376902,0.00012,2]
[331298880,1720197178572,273.37336231,9.9e-05,2]
[331298881,1720197180881,2603.04200281,0.00012,2]
[331298883,1720197186128,42226.30858632,0.00012,2]
[331298884,1720197186468,273.37336231,9.9e-05,2]
[331298894,1720197194160,273.37336231,9.9e-05,2]
[331298895,1720197196011,9615.23092531,0.00012,2]
[331298896,1720197202542,273.37336231,9.9e-05,2]
[331298897,1720197204858,202.96633695,0.00012,2]
[331298898,1720197209658,3130.40828598,0.00012,4]
[331298899,1720197210438,1158.30679459,0.00012,2]
[331298900,1720197212287,273.37336231,9.9e-05,2]
[331298901,1720197213351,1500.0,0.00012,2]
[331298902,1720197214596,17247.80566422,0.00012,2]
[331298903,1720197220270,273.37336231,9.9e-05,2]
[331298904,1720197227847,155.34279108,0.00012,2]
[331298905,1720197228242,1434.5963251,0.00012,2]
[331298906,1720197228315,273.37336231,9.9e-05,2]
[331298907,1720197231749,42226.30858632,0.00012,2]
[331298908,1720197232132,154.90239274,0.00012,2]
[331298909,1720197233331,526.06091387,0.00012,2]
[331298911,1720197236912,273.37336231,9.9e-05,2]
[331298912,1720197238380,510.09603467,0.00012,2]
[331298913,1720197238783,501.29621739,0.00012,2]
[331298914,1720197241238,724.35192965,0.00012,2]
[331298915,1720197244463,4711.13030053,0.00012,2]
[331298916,1720197245225,1634.75488436,0.00012,2]
[331298917,1720197245652,273.37336231,9.9e-05,2]
[331298918,1720197245828,1597.44376902,0.00012,2]
[331298919,1720197246208,34932.27430829,0.00012,2]
[331298920,1720197254289,273.37336231,9.9e-05,2]
[331298921,1720197255665,3078.85157566,0.00012,2]
[331298922,1720197257417,9615.23092531,0.00012,2]
[331298923,1720197259391,427.95620224,0.00012,2]
[331298924,1720197262207,273.37336231,9.9e-05,2]
[331298926,1720197271217,273.37336231,9.9e-05,2]
[331298928,1720197278120,273.37336231,9.9e-05,2]
[331298929,1720197286738,273.37336231,9.9e-05,2]
[331298930,1720197296147,273.37336231,9.9e-05,2]
[331298931,1720197303638,273.37336231,9.9e-05,2]
[331298932,1720197313463,273.37336231,9.9e-05,2]
[331298934,1720197321077,273.37336231,9.9e-05,2]
[331298938,1720197330586,273.37336231,9.9e-05,2]
[331298940,1720197339282,273.37336231,9.9e-05,2]
[331298941,1720197342819,1500.0,0.00012,2]
[331298942,1720197344189,17247.80566422,0.00012,2]
[331298943,1720197348249,273.37336231,9.9e-05,2]
[331298945,1720197349063,533.61474575,0.00012,2]
[331298947,1720197355688,273.37336231,9.9e-05,2]
[331298949,1720197365503,273.37336231,9.9e-05,2]
[331298951,1720197373318,273.37336231,9.9e-05,2]
[331298953,1720197374484,427.95620224,0.00012,2]
[331298954,1720197382000,273.37336231,9.9e-05,2]
[331298956,1720197389463,273.37336231,9.9e-05,2]
[331298958,1720197399115,273.37336231,9.9e-05,2]
[331298960,1720197407712,273.37336231,9.9e-05,2]
[331298961,1720197413994,188.75653871,9.999e-05,2]
[331298962,1720197416107,273.37336231,9.9e-05,2]
[331298963,1720197420824,176.18877867,9.999e-05,2]
[331298965,1720197421390,175.25372401,9.999e-05,2]
[331298966,1720197424143,351.44250268,9.899e-05,2]
[331298969,1720197433080,273.37336231,9.9e-05,2]
[331298970,1720197442518,273.37336231,9.9e-05,2]
[331298971,1720197442605,492.41385168,9.999e-05,2]
[331298973,1720197450287,273.37336231,9.9e-05,2]
[331298975,1720197458402,273.37336231,9.9e-05,2]
[331298978,1720197467246,273.37336231,9.9e-05,2]
[331298980,1720197468430,1434.5963251,0.00012,2]
[331298982,1720197476210,273.37336231,9.9e-05,2]
[331298985,1720197485864,273.37336231,9.9e-05,2]
[331298988,1720197494342,273.37336231,9.9e-05,2]
[331298989,1720197497334,263.69187066,0.00012,2]
[331298991,1720197501028,273.37336231,9.9e-05,2]
[331298993,1720197511859,273.37336231,9.9e-05,2]
[331298995,1720197520243,273.37336231,9.9e-05,2]
[331298998,1720197529316,273.37336231,9.9e-05,2]
[331299000,1720197539126,273.37336231,9.9e-05,2]
[331299004,1720197546794,273.37336231,9.9e-05,2]
[331299006,1720197554790,273.37336231,9.9e-05,2]
[331299008,1720197564118,273.37336231,9.9e-05,2]
[331299009,1720197573395,273.37336231,9.9e-05,2]
[331299011,1720197582081,273.37336231,9.9e-05,2]
[331299012,1720197589203,17247.80566422,0.00012,2]
[331299013,1720197590835,1500.0,0.00012,2]
[331299014,1720197591367,273.37336231,9.9e-05,2]
[331299016,1720197598659,273.37336231,9.9e-05,2]
[331299019,1720197606058,85437.60978842,0.00012,2]
[331299020,1720197608364,273.37336231,9.9e-05,2]
[331299021,1720197618099,273.37336231,9.9e-05,2]
[331299022,1720197625927,1057.80121314,9.999e-05,2]
[331299023,1720197626875,273.37336231,9.9e-05,2]
[331299024,1720197636092,273.37336231,9.9e-05,2]
[331299025,1720197644271,273.37336231,9.9e-05,2]
[331299026,1720197652147,273.37336231,9.9e-05,2]
[331299028,1720197660940,273.37336231,9.9e-05,2]
[331299029,1720197670109,273.37336231,9.9e-05,2]
[331299031,1720197680467,273.37336231,9.9e-05,2]
[331299032,1720197688730,273.37336231,9.9e-05,2]
[331299034,1720197698333,273.37336231,9.9e-05,2]
[331299035,1720197706491,273.37336231,9.9e-05,2]
[331299036,1720197714797,273.37336231,9.9e-05,2]
[331299038,1720197724509,273.37336231,9.9e-05,2]
[331299039,1720197732418,273.37336231,9.9e-05,2]
[331299040,1720197740426,273.37336231,9.9e-05,2]
[331299047,1720197749637,273.37336231,9.9e-05,2]
[331299048,1720197757714,273.37336231,9.9e-05,2]
[331299049,1720197765751,273.37336231,9.9e-05,2]
[331299050,1720197768440,1434.5963251,0.00012,2]
[331299051,1720197774006,273.37336231,9.9e-05,2]
[331299052,1720197784047,273.37336231,9.9e-05,2]
[331299054,1720197791045,273.37336231,9.9e-05,2]
[331299056,1720197800179,273.37336231,9.9e-05,2]
[331299057,1720197808615,273.37336231,9.9e-05,2]
[331299058,1720197811561,1434.5963251,0.00012,2]
[331299059,1720197815452,171.58665919,9.9e-05,2]
[331299060,1720197817474,273.37336231,9.9e-05,2]
[331299061,1720197825625,273.37336231,9.9e-05,2]
[331299063,1720197834291,273.37336231,9.9e-05,2]
[331299065,1720197842100,273.37336231,9.9e-05,2]
[331299067,1720197850218,273.37336231,9.9e-05,2]
[331299069,1720197858656,273.37336231,9.9e-05,2]
[331299070,1720197867818,273.37336231,9.9e-05,2]
[331299071,1720197875252,273.37336231,9.9e-05,2]
[331299072,1720197876423,1434.5963251,0.00012,2]
[331299073,1720197883684,273.37336231,9.9e-05,2]
[331299074,1720197892832,273.37336231,9.9e-05,2]
[331299075,1720197897852,1239.38460181,0.00012,2]
[331299076,1720197902147,273.37336231,9.9e-05,2]
[331299077,1720197909664,273.37336231,9.9e-05,2]
[331299078,1720197917826,273.37336231,9.9e-05,2]
[331299079,1720197927848,273.37336231,9.9e-05,2]
[331299080,1720197931875,863.34921028,0.00012,2]
[331299081,1720197936466,273.37336231,9.9e-05,2]
[331299082,1720197944879,273.37336231,9.9e-05,2]
[331299083,1720197953273,273.37336231,9.9e-05,2]
[331299084,1720197960570,273.37336231,9.9e-05,2]
[331299086,1720197968680,273.37336231,9.9e-05,2]
[331299089,1720197976874,273.37336231,9.9e-05,2]
[331299090,1720197984976,273.37336231,9.9e-05,2]
[331299091,1720197993823,273.37336231,9.9e-05,2]
[331299092,1720198002199,273.37336231,9.9e-05,2]
[331299093,1720198010035,273.37336231,9.9e-05,2]
[331299094,1720198020846,273.37336231,9.9e-05,2]
[331299095,1720198028023,273.37336231,9.9e-05,2]
[331299096,1720198037621,273.37336231,9.9e-05,2]
[331299097,1720198045891,273.37336231,9.9e-05,2]
[331299098,1720198054134,273.37336231,9.9e-05,2]
[331299099,1720198063848,273.37336231,9.9e-05,2]
[331299100,1720198072165,273.37336231,9.9e-05,2]
[331299101,1720198081409,273.37336231,9.9e-05,2]
[331299102,1720198089777,273.37336231,9.9e-05,2]
[331299106,1720198098469,273.37336231,9.9e-05,2]
[331299107,1720198107176,273.37336231,9.9e-05,2]
[331299109,1720198115545,273.37336231,9.9e-05,2]
[331299110,1720198118747,-408.7028726,0.00013053,2]
[331299111,1720198118787,-300.0,0.00013156,2]
[331299112,1720198118832,-237.65612499,0.00013157,2]
[331299113,1720198123846,273.37336231,9.9e-05,2]
[331299114,1720198131565,273.37336231,9.9e-05,2]
[331299115,1720198140157,273.37336231,9.9e-05,2]
[331299116,1720198143074,-300.0,0.00013156,2]
[331299117,1720198144902,-665.28617754,0.00013157,2]
[331299118,1720198146781,-393.42864092,0.00013157,2]
[331299119,1720198148764,273.37336231,9.9e-05,2]
[331299120,1720198158899,273.37336231,9.9e-05,2]
[331299121,1720198166422,273.37336231,9.9e-05,2]
[331299122,1720198168708,-992.46047391,0.00013157,2]
[331299123,1720198170187,-992.46047391,0.00013157,2]
[331299124,1720198174428,273.37336231,9.9e-05,2]
[331299125,1720198183233,273.37336231,9.9e-05,2]
[331299126,1720198192136,273.37336231,9.9e-05,2]
[331299127,1720198193602,-1032.15889287,0.00013157,2]
[331299128,1720198194239,-1032.15889287,0.00013157,2]
[331299129,1720198199899,273.37336231,9.9e-05,2]
[331299130,1720198207900,273.37336231,9.9e-05,2]
[331299131,1720198217364,273.37336231,9.9e-05,2]
[331299132,1720198225613,273.37336231,9.9e-05,2]
[331299158,1720198233173,273.37336231,9.9e-05,2]
[331299176,1720198242294,273.37336231,9.9e-05,2]
[331299193,1720198246317,-300.0,0.00013156,2]
[331299195,1720198246329,-19554.39032299,0.00013157,2]
[331299196,1720198246340,-427.95620224,0.00013157,2]
[331299199,1720198246350,-1926.0610359,0.00013264,2]
[331299201,1720198246360,-165.14159334,0.00013698,2]
[331299202,1720198246371,-3000.0,0.00013699,2]
[331299205,1720198246381,-378.3419311,0.00013699,2]
[331299209,1720198246391,-186.6520645,0.00013699,2]
[331299212,1720198246401,-789.859108,0.00014,2]
[331299216,1720198246411,-30000.0,0.00014041,2]
[331299218,1720198246426,-420.0,0.00014471,2]
[331299220,1720198246435,-3138.06906429,0.00014794,2]
[331299223,1720198246450,-1634.75488436,0.00014794,2]
[331299226,1720198246460,-1618.60330862,0.00014794,2]
[331299228,1720198246470,-3130.40828598,0.00014794,4]
[331299230,1720198246480,-1158.30679459,0.00014794,2]
[331299231,1720198246490,-1597.44376902,0.00014794,2]
[331299232,1720198246500,-9615.23092531,0.00014794,2]
[331299234,1720198246510,-95157.1397621,0.00014989,2]
[331299236,1720198246520,-500.0,0.00014994,2]
[331299238,1720198246530,-456.64282491,0.00014994,2]
[331299240,1720198246541,-200.0,0.00014994,2]
[331299241,1720198246551,-540.14253088,0.00014994,2]
[331299242,1720198246561,-500.0,0.00014994,2]
[331299243,1720198246571,-500.0,0.00014994,2]
[331299244,1720198246581,-504.37718247,0.00014994,2]
[331299245,1720198246591,-360.71879604,0.00014994,2]
[331299246,1720198246600,-631.00353738,0.00014994,2]
[331299247,1720198246611,-500.0,0.00014994,2]
[331299248,1720198246620,-480.66081078,0.00014994,2]
[331299249,1720198246630,-500.0,0.00014994,2]
[331299250,1720198246640,-500.0,0.00014994,2]
[331299251,1720198246650,-500.0,0.00014994,2]
[331299252,1720198246660,-500.0,0.00014994,2]
[331299253,1720198246669,-500.0,0.00014994,2]
[331299254,1720198246679,-500.0,0.00014994,2]
[331299255,1720198246688,-500.0,0.00014994,2]
[331299256,1720198246702,-238.83513543,0.00014994,2]
[331299257,1720198246711,-500.0,0.00014994,2]
[331299258,1720198246721,-500.0,0.00014994,2]
[331299259,1720198246731,-500.0,0.00014994,2]
[331299260,1720198246741,-26808.78193785,0.00014999,2]
[331299261,1720198246751,-34932.27430829,0.00014999,2]
[331299262,1720198246761,-2420.76089721,0.00015,2]
[331299263,1720198246771,-1063.91419342,0.00015,2]
[331299264,1720198246781,-848.96547902,0.00015,2]
[331299265,1720198246791,-937.80924807,0.00015,2]
[331299266,1720198246801,-170.32678473,0.00015,2]
[331299267,1720198246812,-2833.16446756,0.00015,2]
[331299268,1720198246822,-304.31082142,0.00015,2]
[331299269,1720198246832,-587.0,0.00015918,2]
[331299270,1720198246843,-155.06768222,0.00016,2]
[331299271,1720198246853,-155.1773566,0.00016,2]
[331299272,1720198246865,-47578.5698811,0.00016244,2]
[331299273,1720198246876,-57214.94712358,0.00016254,2]
[331299274,1720198246886,-166.666666,0.00016438,2]
[331299275,1720198246896,-150.0,0.000166,2]
[331299276,1720198246907,-166.666666,0.00016823,2]
[331299277,1720198246916,-250.0,0.00017148,2]
[331299278,1720198246928,-166.666666,0.00017208,2]
[331299279,1720198246938,-823.0,0.0001751,2]
[331299280,1720198246955,-166.666666,0.00017592,2]
[331299281,1720198246965,-670.69912515,0.000176,2]
[331299282,1720198246976,-350.0,0.00017696,2]
[331299283,1720198246986,-166.666666,0.00017977,2]
[331299284,1720198246995,-190.9326654,0.00018,2]
[331299285,1720198247010,-221.50282152,0.00018,2]
[331299286,1720198247019,-166.666666,0.00018362,2]
[331299287,1720198247029,-400.0,0.00018792,2]
[331299288,1720198247039,-812.31944159,0.00019,3]
[331299289,1720198247049,-250.0,0.00019041,2]
[331299290,1720198247059,-160.318618,0.00019178,2]
[331299291,1720198247070,-440.6010737,0.00019178,4]
[331299292,1720198247079,-1152.0,0.00019261,2]
[331299293,1720198247090,-47578.5698811,0.0001979,2]
[331299294,1720198247099,-52100.07365113,0.000198,2]
[331299295,1720198247109,-150.0,0.00019967,2]
[331299296,1720198247119,-173.99614649,0.00019995,2]
[331299297,1720198247128,-154.85288975,0.0002,2]
[331299298,1720198247138,-1116.9418809,0.0002,2]
[331299299,1720198247148,-4172.94461587,0.0002,2]
[331299300,1720198247157,-435.0,0.0002,2]
[331299301,1720198247167,-293.1691109,0.0002,2]
[331299302,1720198247176,-225.53942994,0.0002,2]
[331299303,1720198247186,-763.20815407,0.0002,2]
[331299304,1720198247199,-169.50434797,0.0002,2]
[331299305,1720198247209,-2244.84007704,0.0002,2]
[331299306,1720198247226,-150.0,0.00020054,2]
[331299307,1720198247242,-250.0,0.00020515,2]
[331299308,1720198247253,-250.0,0.00020602,2]
[331299309,1720198247274,-566.155464,0.00021096,2]
[331299310,1720198247293,-350.0,0.00021149,2]
[331299311,1720198247303,-1135.0,0.00021187,2]
[331299312,1720198247313,-450.0,0.00021611,2]
[331299313,1720198247323,-383.42161421,0.00021697,2]
[331299315,1720198247333,-590.80081677,0.00022,2]
[331299316,1720198247344,-550.0,0.00022158,2]
[331299317,1720198247354,-47578.5698811,0.0002299,3]
[331299318,1720198247364,-6364.3639553,0.00023,2]
[331299319,1720198247374,-200.0,0.00023,2]
[331299321,1720198247384,-152.80906433,0.00023273,2]
[331299323,1720198247394,-1104.01247259,0.00023293,2]
[331299325,1720198247404,-10576.24668885,0.00023966,2]
[331299327,1720198247413,-160.13983905,0.000244,2]
[331299329,1720198247423,-644.20062363,0.00024458,2]
[331299331,1720198247432,-200.0,0.00024658,15]
[331299333,1720198247452,-380.0,0.00024658,2]
[331299334,1720198247463,-152.80906433,0.00024935,2]
[331299335,1720198247473,-189.04078712,0.00025,2]
[331299337,1720198247483,-13378.11390107,0.00025,2]
[331299339,1720198247492,-621.21003118,0.00025681,2]
[331299340,1720198247502,-4462.98107428,0.00026,2]
[331299342,1720198247512,-154.85288875,0.00026,2]
[331299343,1720198247521,-620.06050156,0.00026965,2]
[331299344,1720198247531,-566.155464,0.00027195,2]
[331299345,1720198247540,-160.13983905,0.00027342,2]
[331299346,1720198247550,-47578.5698811,0.00027387,3]
[331299347,1720198247560,-915.06377454,0.00027397,2]
[331299348,1720198247570,-500.0,0.00027397,2]
[331299350,1720198247579,-500.0,0.00027397,2]
[331299352,1720198247589,-500.0,0.00027397,2]
[331299354,1720198247598,-500.0,0.00027397,2]
[331299355,1720198247608,-500.0,0.00027397,2]
[331299357,1720198247620,-500.0,0.00027397,2]
[331299358,1720198247629,-500.0,0.00027397,2]
[331299359,1720198247638,-500.0,0.00027397,2]
[331299362,1720198247653,-500.0,0.00027397,2]
[331299365,1720198247663,-500.0,0.00027397,2]
[331299368,1720198247673,-500.0,0.00027397,2]
[331299370,1720198247683,-500.0,0.00027397,2]
[331299372,1720198247696,-500.0,0.00027397,2]
[331299375,1720198247707,-500.0,0.00027397,2]
[331299376,1720198247717,-500.0,0.00027397,2]
[331299378,1720198247727,-500.0,0.00027397,2]
[331299381,1720198247738,-500.0,0.00027397,2]
[331299382,1720198247748,-500.0,0.00027397,2]
[331299392,1720198247881,-500.0,0.00027397,2]
[331299393,1720198247891,-500.0,0.00027397,2]
[331299394,1720198247901,-500.0,0.00027397,2]
[331299395,1720198247911,-500.0,0.00027397,2]
[331299396,1720198247921,-500.0,0.00027397,2]
[331299397,1720198247932,-500.0,0.00027397,2]
[331299399,1720198247947,-500.0,0.00027397,2]
[331299401,1720198247958,-500.0,0.00027397,2]
[331299403,1720198247969,-500.0,0.00027397,2]
[331299404,1720198247980,-500.0,0.00027397,2]
[331299405,1720198247991,-500.0,0.00027397,2]
[331299406,1720198248006,-500.0,0.00027397,2]
[331299407,1720198248020,-500.0,0.00027397,2]
[331299408,1720198248030,-500.0,0.00027397,2]
[331299409,1720198248041,-500.0,0.00027397,2]
[331299410,1720198248052,-500.0,0.00027397,2]
[331299411,1720198248061,-500.0,0.00027397,2]
[331299412,1720198248071,-500.0,0.00027397,2]
[331299413,1720198248080,-500.0,0.00027397,2]
[331299414,1720198248090,-500.0,0.00027397,2]
[331299415,1720198248100,-500.0,0.00027397,2]
[331299416,1720198248109,-500.0,0.00027397,2]
[331299417,1720198248120,-500.0,0.00027397,2]
[331299418,1720198248131,-500.0,0.00027397,2]
[331299419,1720198248141,-500.0,0.00027397,2]
[331299420,1720198248151,-500.0,0.00027397,2]
[331299421,1720198248162,-500.0,0.00027397,2]
[331299422,1720198248172,-500.0,0.00027397,2]
[331299423,1720198248182,-500.0,0.00027397,2]
[331299424,1720198248197,-500.0,0.00027397,2]
[331299425,1720198248206,-500.0,0.00027397,2]
[331299426,1720198248216,-500.0,0.00027397,2]
[331299427,1720198248226,-500.0,0.00027397,2]
[331299428,1720198248235,-500.0,0.00027397,2]
[331299429,1720198248245,-500.0,0.00027397,2]
[331299430,1720198248255,-500.0,0.00027397,2]
[331299431,1720198248264,-500.0,0.00027397,2]
[331299432,1720198248275,-500.0,0.00027397,2]
[331299433,1720198248284,-500.0,0.00027397,2]
[331299434,1720198248294,-500.0,0.00027397,2]
[331299435,1720198248304,-500.0,0.00027397,2]
[331299436,1720198248314,-160.84301746,0.00027397,2]
[331299437,1720198248324,-500.0,0.00027397,2]
[331299438,1720198248333,-105.96973218,0.00027397,2]
[331299439,1720198248348,-394.03026782,0.00027397,2]
[331299440,1720198248358,-500.0,0.00027397,2]
[331299441,1720198248368,-500.0,0.00027397,2]
[331299442,1720198248378,-500.0,0.00027397,2]
[331299443,1720198248389,-500.0,0.00027397,2]
[331299444,1720198248401,-500.0,0.00027397,2]
[331299445,1720198248412,-266.08430174,0.00027397,2]
[331299446,1720198248422,-500.0,0.00027397,2]
[331299447,1720198248433,-207.09828204,0.00027397,2]
[331299448,1720198248448,-297.21194,0.00027397,120]
[331299449,1720198248458,-175.1548047,0.000274,2]